bitfinex/quotes_ETHUSD_20241123
["timestamp","ask_amount","ask_price","bid_price","bid_amount"]
[1732399692960,0.09193472,3418.9,3418.1,0.7992]
[1732399693171,0.06504583,3418.9,3418.1,0.7992]
[1732399693371,0.02688889,3419.1,3418.1,0.7992]
[1732399693581,0.06508097,3419.0,3418.1,0.7992]
[1732399693742,0.02688889,3418.9,3418.1,0.7992]
[1732399693942,0.06501068,3418.8,3418.1,0.7992]
[1732399694354,0.02688889,3419.0,3418.1,0.7992]
[1732399694672,0.06504583,3418.9,3418.1,0.7992]
[1732399694835,0.02688889,3418.8,3418.1,0.7992]
[1732399695234,0.06497554,3418.7,3418.1,0.7992]
[1732399696211,0.02688889,3418.7,3418.1,0.7992]
[1732399696467,0.06494039,3418.6,3418.1,0.7992]
[1732399697064,0.02688889,3418.5,3418.1,0.7992]
[1732399697572,0.06487008,3418.4,3418.1,0.7992]
[1732399698472,0.02688889,3418.7,3418.1,0.7992]
[1732399698694,0.06483493,3418.3,3418.1,0.7992]
[1732399698974,0.06274474,3418.2,3418.1,0.7992]
[1732399699175,0.02688889,3418.7,3418.1,0.7992]
[1732399699334,0.06288536,3418.6,3418.1,0.7992]
[1732399699537,0.08977425,3418.6,3418.1,0.7992]
[1732399700671,0.02688889,3418.5,3418.1,0.7992]
[1732399701072,0.06277835,3418.4,3418.1,0.7992]
[1732399701369,0.02688889,3418.9,3418.1,0.7992]
[1732399701535,0.06291895,3418.8,3418.1,0.7992]
[1732399702535,0.02688889,3418.7,3418.1,0.7992]
[1732399702871,0.06284866,3418.6,3418.1,0.7992]
[1732399703541,0.02688889,3418.5,3418.1,0.7992]
[1732399703773,0.06277835,3418.4,3418.1,0.7992]
[1732399705100,0.02688889,3418.6,3418.1,0.7992]
[1732399705308,0.0627432,3418.3,3418.1,0.7992]
[1732399705513,0.02688889,3418.6,3418.1,0.7992]
[1732399705698,0.06270804,3418.2,3418.1,0.7992]
[1732399705869,3.02688889,3418.6,3418.1,0.7992]
[1732399706177,0.30268889,3418.5,3418.1,0.7992]
[1732399706374,0.08966724,3418.4,3418.1,0.7992]
[1732399706700,0.06277835,3418.4,3418.1,0.7992]
[1732399707008,3.0,3418.6,3418.1,0.7992]
[1732399707204,0.0627432,3418.3,3418.1,0.7992]
[1732399707377,3.0,3418.6,3418.1,0.7992]
[1732399707607,0.0628135,3418.5,3418.1,0.7992]
[1732399708028,0.08970239,3418.5,3418.1,0.7992]
[1732399708332,0.02688889,3418.4,3418.1,0.7992]
[1732399708702,0.0627432,3418.3,3418.1,0.7992]
[1732399709624,0.08963209,3418.3,3418.1,0.7992]
[1732399709813,0.6283811,3418.3,3417.8,0.20591852]
[1732399709995,0.0626946,3418.2,3417.8,0.20591852]
[1732399710195,2.9882146,3418.2,3417.8,0.20591852]
[1732399710435,0.02688889,3418.1,3417.8,0.20591852]
[1732399710932,2.98827611,3418.0,3417.8,0.20591852]
[1732399711119,0.64449685,3417.9,3417.8,0.20591852]
[1732399711323,0.10511983,3417.9,3417.8,0.20591852]
[1732399711498,2.92609,3417.6,3417.0,0.7809]
[1732399711699,0.08927916,3417.5,3417.0,0.7809]
[1732399713022,0.0157,3417.4,3416.2,0.2916]
[1732399713225,3.02688889,3417.3,3416.3,1.0725]
[1732399713542,0.08920881,3417.3,3416.3,1.0725]
[1732399713742,0.06231992,3417.3,3416.4,0.56998559]
[1732399713914,0.06231992,3417.3,3416.5,0.81016679]
[1732399714116,3.0,3418.0,3416.6,0.40542208]
[1732399714419,2.95250889,3418.1,3416.8,0.7809]
[1732399714420,0.02688889,3418.1,3416.8,0.7809]
[1732399714736,3.0157,3418.2,3417.0,0.7809]
[1732399714737,0.06248463,3418.0,3417.0,0.7809]
[1732399714900,0.06248463,3418.0,3417.2,0.7809]
[1732399715095,0.06248463,3418.0,3417.2,1.18632208]
[1732399715330,0.02688889,3418.8,3417.4,0.2916]
[1732399715535,0.02688889,3418.8,3417.5,1.0725]
[1732399715738,0.06274773,3418.7,3417.6,0.7809]
[1732399715903,0.02688889,3418.6,3417.6,0.7809]
[1732399716304,0.06267743,3418.5,3417.6,0.7809]
[1732399716495,0.02688889,3418.4,3417.6,0.7809]
[1732399716935,0.06260712,3418.3,3417.6,0.7809]
[1732399717841,0.02688889,3418.7,3417.6,0.7809]
[1732399718019,0.06264628,3418.2,3417.6,0.7809]
[1732399718222,0.02688889,3418.5,3417.6,0.7809]
[1732399718533,0.06261112,3418.1,3417.6,0.7809]
[1732399718773,0.02688889,3418.5,3417.6,0.7809]
[1732399719346,0.06271659,3418.4,3417.6,0.7809]
[1732399719636,0.02688889,3418.7,3417.6,0.7809]
[1732399719809,0.06268143,3418.3,3417.8,0.7514]
[1732399720016,0.02688889,3418.7,3417.8,0.7514]
[1732399720237,0.06278689,3418.6,3417.8,0.7514]
[1732399720735,0.02688889,3418.6,3417.8,0.7514]
[1732399720941,0.06275174,3418.5,3417.8,0.7514]
[1732399721103,0.02688889,3418.4,3417.8,0.7514]
[1732399721713,0.06268143,3418.3,3417.8,0.7514]
[1732399722304,0.02688889,3418.7,3417.8,0.7514]
[1732399722510,0.06264449,3418.2,3417.8,0.7514]
[1732399722711,0.02688889,3418.5,3417.8,0.7514]
[1732399723029,0.06271122,3418.4,3417.8,0.7514]
[1732399724428,0.02688889,3418.6,3417.8,0.7514]
[1732399724755,0.35794327,3418.5,3417.8,0.7514]
[1732399724911,0.02688889,3418.4,3417.8,0.7514]
[1732399725108,0.06274638,3418.5,3417.8,0.7514]
[1732399725344,0.06267607,3418.3,3417.8,0.7514]
[1732399725524,0.06271122,3418.4,3417.8,0.7514]
[1732399725950,0.02688889,3418.6,3417.8,0.7514]
[1732399726122,0.0626698,3418.3,3417.8,0.7514]
[1732399726330,0.02688889,3418.5,3417.8,0.7514]
[1732399726948,0.06270496,3418.4,3417.8,0.7514]
[1732399730519,0.02688889,3418.6,3417.8,0.7514]
[1732399730744,0.06027066,3418.3,3417.8,0.7514]
[1732399730927,0.32364778,3418.6,3417.8,0.7514]
[1732399731551,0.06034097,3418.5,3417.8,0.7514]
[1732399731854,0.02688889,3418.4,3417.8,0.7514]
[1732399732325,2.98383064,3418.3,3417.8,0.7514]
[1732399732524,0.02688889,3418.2,3417.8,0.7514]
[1732399732730,0.10096953,3418.3,3417.8,0.7514]
[1732399732960,0.05831032,3418.1,3417.8,0.7514]
[1732399733133,0.05834548,3418.2,3417.8,0.7514]
[1732399733333,0.05827516,3418.0,3417.8,0.7514]
[1732399733537,0.0157,3418.3,3417.8,0.7514]
[1732399733778,0.05823999,3417.9,3417.8,0.7514]
[1732399733950,0.33938778,3418.3,3417.8,0.7514]
[1732399734147,0.05823999,3417.9,3417.8,0.7514]
[1732399734658,0.32368778,3418.3,3417.8,0.7514]
[1732399734856,0.05823999,3417.9,3417.8,0.7514]
[1732399735156,0.32368778,3418.3,3417.8,0.7514]
[1732399735358,0.05823999,3417.9,3417.8,0.7514]
[1732399735551,0.32368778,3418.3,3417.8,0.7514]
[1732399735760,0.05823999,3417.9,3417.8,0.7514]
[1732399736246,0.32368778,3418.3,3417.8,0.7514]
[1732399736432,0.05823999,3417.9,3417.8,0.7514]
[1732399736635,0.32368778,3418.3,3417.8,0.7514]
[1732399736860,0.05821046,3417.9,3417.8,0.7514]
[1732399737168,0.32368778,3418.3,3417.8,0.7514]
[1732399737320,0.05821046,3417.9,3417.8,0.7514]
[1732399737520,0.32368778,3418.3,3417.8,0.7514]
[1732399737717,0.05821046,3417.9,3417.8,0.7514]
[1732399737955,0.32368778,3418.3,3417.8,0.7514]
[1732399738133,0.05821046,3417.9,3417.5,0.8189]
[1732399738329,0.02688889,3418.1,3417.5,0.8189]
[1732399738533,0.05817529,3417.8,3417.5,0.8189]
[1732399738798,0.02688889,3417.9,3417.5,0.8189]
[1732399738949,0.05814013,3417.7,3417.5,0.8189]
[1732399739264,0.02688889,3417.9,3417.2,0.8189]
[1732399739460,0.05810496,3417.6,3417.3,0.16818756]
[1732399739670,0.35919635,3417.6,3417.3,0.16818756]
[1732399739970,0.30109139,3417.6,3417.3,0.16818756]
[1732399740265,0.05804472,3417.5,3417.3,0.16818756]
[1732399741170,2.95283889,3417.7,3417.3,0.16818756]
[1732399741659,0.05807989,3417.6,3417.3,0.16818756]
[1732399742052,2.92588,3417.8,3417.3,0.16818756]
[1732399742255,0.05804472,3417.5,3417.2,0.8189]
[1732399742457,2.92588,3417.8,3417.2,0.8189]
[1732399742458,0.02688889,3417.7,3417.2,0.8189]
[1732399742750,0.05800954,3417.4,3417.2,0.8189]
[1732399742925,0.02688889,3417.7,3417.2,0.8189]
[1732399743269,3.24679889,3417.9,3417.2,0.8189]
[1732399743555,0.61881089,3417.8,3417.2,0.8189]
[1732399743767,0.02688889,3417.7,3417.2,0.8189]
[1732399744127,0.05807989,3417.6,3417.2,0.8189]
[1732399744656,0.02688889,3417.5,3416.9,0.8189]
[1732399745179,0.05796925,3417.4,3416.9,0.8189]
[1732399746267,0.02688889,3417.7,3416.9,0.8189]
[1732399746428,0.91630378,3417.7,3416.9,0.8189]
[1732399746629,0.05793497,3417.3,3416.9,0.8189]
[1732399746939,0.91630378,3417.7,3416.9,0.8189]
[1732399747123,0.05789979,3417.2,3416.9,0.8189]
[1732399747323,0.91630378,3417.7,3416.9,0.8189]
[1732399747523,0.05786461,3417.1,3416.9,0.8189]
[1732399748058,0.05782943,3417.0,3416.9,0.8189]
[1732399748256,2.95267889,3417.9,3416.9,0.8189]
[1732399748459,0.05811083,3417.8,3416.9,0.8189]
[1732399748667,0.02688889,3417.7,3416.9,0.8189]
[1732399748871,0.0157,3418.0,3416.9,0.8189]
[1732399748872,0.05804049,3417.6,3416.9,0.8189]
[1732399749072,0.05804049,3417.6,3417.0,0.93549221]
[1732399749253,0.02688889,3418.0,3417.0,0.93549221]
[1732399749458,0.058146,3417.9,3417.0,0.93549221]
[1732399749634,0.08503489,3417.9,3417.0,0.93549221]
[1732399749838,0.058146,3417.9,3417.1,0.2916]
[1732399750044,0.02688889,3418.2,3417.2,0.7839]
[1732399750373,0.05821632,3418.1,3417.2,0.7839]
[1732399750671,0.02688889,3418.0,3417.2,0.7839]
[1732399751032,0.05813883,3417.9,3417.2,0.7839]
[1732399751256,0.32796666,3417.8,3417.2,0.7839]
[1732399751454,0.0580685,3417.7,3417.2,0.7839]
[1732399751667,0.02688889,3417.6,3417.2,0.7839]
[1732399751872,0.0580685,3417.7,3417.2,0.7839]
[1732399752436,0.08495739,3417.7,3417.2,0.7839]
[1732399752982,0.41613591,3417.7,3417.2,0.7839]
[1732399753278,0.43183591,3417.7,3416.8,1.0755]
[1732399753478,3.02660739,3417.7,3416.8,1.0755]
[1732399753883,0.10065739,3417.7,3416.8,1.0755]
[1732399754184,2.92615,3417.5,3416.8,1.0755]
[1732399754366,0.02688889,3417.4,3416.8,1.0755]
[1732399754678,0.05796298,3417.4,3416.8,1.0755]
[1732399754879,0.02688889,3417.4,3416.8,0.7839]
[1732399755091,0.0579484,3417.3,3416.8,0.7839]
[1732399755743,0.02688889,3417.2,3416.8,0.7839]
[1732399755945,0.08478241,3417.2,3416.8,0.7839]
[1732399756565,0.05789352,3417.2,3416.8,0.7839]
[1732399756847,0.0578458,3417.1,3416.8,0.7839]
[1732399757077,0.02688889,3417.4,3416.8,0.7839]
[1732399757280,0.05781062,3417.0,3416.8,0.7839]
[1732399757882,0.05777544,3416.9,3416.8,0.7839]
[1732399758089,0.29530089,3417.3,3416.8,0.7839]
[1732399758248,0.05777544,3416.9,3416.8,0.92207848]
[1732399758449,0.02688889,3417.2,3416.8,0.92207848]
[1732399758786,0.0578458,3417.1,3416.8,0.92207848]
[1732399759142,0.0578458,3417.1,3416.9,0.13817444]
[1732399759546,0.02688889,3417.3,3416.9,0.13817444]
[1732399759784,0.05781062,3417.0,3416.9,0.13817444]
[1732399759986,2.92645,3417.2,3416.9,0.13817444]
[1732399760187,0.08469682,3417.0,3416.9,0.13817444]
[1732399760389,0.02688889,3417.0,3416.9,0.13817444]
[1732399760683,2.95342889,3417.0,3416.9,0.13817444]
[1732399760884,3.01123682,3417.0,3416.9,0.13817444]
[1732399761375,0.6800285,3417.0,3416.9,0.13817444]
[1732399761585,0.08469682,3417.0,3416.9,0.13817444]
[1732399761884,0.08469682,3417.0,3416.3,0.7866]
[1732399764595,3.01125682,3417.0,3416.3,0.7866]
[1732399765179,0.08469682,3417.0,3416.1,0.7866]
[1732399765393,3.01125682,3417.0,3416.1,0.7866]
[1732399765556,0.0157,3416.9,3416.1,0.7866]
[1732399765882,0.02688889,3416.8,3416.1,0.7866]
[1732399766085,0.05733683,3416.7,3416.1,0.7866]
[1732399766361,0.02688889,3416.6,3416.1,0.7866]
[1732399766579,0.08419052,3416.6,3416.1,0.7866]
[1732399767575,3.31381957,3416.6,3416.1,0.7866]
[1732399767780,2.92707,3416.4,3415.6,0.8234]
[1732399767981,0.02688889,3416.3,3415.6,0.8234]
[1732399768163,0.08406523,3416.3,3415.7,0.11394321]
[1732399768805,0.67944475,3416.3,3415.7,0.11394321]
[1732399768960,2.92729,3416.2,3415.7,0.11394321]
[1732399769156,0.04258889,3416.1,3415.7,0.11394321]
[1732399769401,3.02701856,3416.1,3415.7,0.11394321]
[1732399769605,0.09968856,3416.1,3415.7,0.11394321]
[1732399771805,3.02699856,3416.1,3415.7,0.11394321]
[1732399772007,3.92240542,3416.1,3415.7,0.11394321]
[1732399773200,0.99509542,3416.1,3415.7,0.11394321]
[1732399774878,0.09968856,3416.1,3415.7,0.11394321]
[1732399776713,3.02703856,3416.1,3415.7,0.11394321]
[1732399778099,0.09968856,3416.1,3415.7,0.11394321]
[1732399779107,3.02700856,3416.1,3415.7,0.11394321]
[1732399779614,0.09968856,3416.1,3415.7,0.11394321]
[1732399779903,0.08398856,3416.1,3415.7,0.11394321]
[1732399780917,0.05709967,3416.1,3415.8,0.7633]
[1732399781413,3.02688889,3416.4,3415.8,0.7633]
[1732399781897,0.05411014,3416.3,3415.8,0.7633]
[1732399783915,0.02688889,3416.5,3415.8,0.7633]
[1732399784123,0.05407494,3416.2,3415.8,0.7633]
[1732399784297,0.88806189,3416.4,3415.8,0.7633]
[1732399784498,0.05411014,3416.3,3415.8,0.7633]
[1732399784918,0.04258889,3416.8,3415.8,0.7633]
[1732399785082,0.05236845,3416.2,3415.8,0.7633]
[1732399785287,0.02688889,3417.0,3415.8,0.7633]
[1732399785509,0.05093255,3416.9,3415.8,0.7633]
[1732399785789,0.02688889,3416.8,3415.8,0.7633]
[1732399786234,0.05086218,3416.7,3415.8,0.7633]
[1732399786591,0.02688889,3416.9,3415.8,0.7633]
[1732399786890,0.05089736,3416.8,3415.8,0.7633]
[1732399789641,0.05089736,3416.8,3415.9,0.7844]
[1732399789994,0.02688889,3417.3,3415.9,0.7844]
[1732399790221,0.05086218,3416.7,3415.9,0.7844]
[1732399790425,0.02688889,3417.1,3415.9,0.7844]
[1732399790602,0.05082699,3416.6,3415.9,0.7844]
[1732399790801,0.02688889,3417.1,3415.9,0.7844]
[1732399791007,0.05079179,3416.5,3415.9,0.7844]
[1732399791329,0.0507566,3416.4,3415.9,0.7844]
[1732399791701,0.02688889,3417.1,3415.9,0.7844]
[1732399791907,0.05096773,3417.0,3415.9,0.7844]
[1732399792109,0.02688889,3416.9,3415.9,0.7844]
[1732399792320,0.05089736,3416.8,3415.9,0.7844]
[1732399792841,0.05089736,3416.8,3416.1,0.7844]
[1732399793392,0.02688889,3417.1,3416.1,0.7844]
[1732399793737,0.05096773,3417.0,3416.1,0.7844]
[1732399793896,0.02688889,3416.9,3416.1,0.7844]
[1732399794101,0.05089736,3416.8,3416.1,0.7844]
[1732399794336,0.02688889,3417.3,3416.1,0.7844]
[1732399794508,0.05086218,3416.7,3416.1,0.7844]
[1732399794713,0.02688889,3417.1,3416.1,0.7844]
[1732399794922,0.05082699,3416.6,3416.1,0.7844]
[1732399795136,0.02688889,3417.4,3416.1,0.8136719]
[1732399795433,0.05079179,3416.5,3416.3,0.7844]
[1732399795739,0.02688889,3417.5,3416.3,0.7844]
[1732399796109,0.05121179,3417.4,3416.3,0.7844]
[1732399796707,5.96845889,3417.8,3416.3,0.7844]
[1732399797042,0.0513173,3417.7,3416.3,0.7844]
[1732399797247,0.02688889,3417.6,3416.3,0.7844]
[1732399797432,3.62886651,3417.6,3416.3,0.7844]
[1732399797663,0.05124696,3417.5,3416.3,0.7844]
[1732399797806,0.02688889,3417.4,3416.3,0.7844]
[1732399798226,0.05117661,3417.3,3416.3,0.7844]
[1732399798445,0.02688889,3417.2,3416.3,0.7844]
[1732399798806,0.05110625,3417.1,3416.3,0.7844]
[1732399799245,0.05110625,3417.1,3416.3,0.96021837]
[1732399799550,0.05107107,3417.0,3416.4,0.2916]
[1732399799843,0.05107107,3417.0,3416.5,0.8017]
[1732399800009,0.02688889,3417.6,3416.5,0.8017]
[1732399800207,0.05103589,3416.9,3416.5,0.8017]
[1732399800412,0.62104489,3417.6,3416.5,0.8017]
[1732399800641,0.0510007,3416.8,3416.5,0.8017]
[1732399800836,0.02688889,3416.7,3416.2,0.09410132]
[1732399801047,3.0,3416.6,3416.2,0.09410132]
[1732399801379,0.67809668,3416.5,3416.2,0.09410132]
[1732399802942,2.92706,3416.4,3416.2,0.09410132]
[1732399803157,3.04258889,3416.3,3416.2,0.09410132]
[1732399803337,3.09176406,3416.3,3416.2,0.09410132]
[1732399803546,6.01890406,3416.3,3416.2,0.09410132]
[1732399803724,6.97368871,3416.3,3416.2,0.09410132]
[1732399803925,6.94679982,3416.3,3416.2,0.09410132]
[1732399804224,1.01965982,3416.3,3416.2,0.09410132]
[1732399804531,0.09176406,3416.3,3416.2,0.09410132]
[1732399805955,3.09176406,3416.3,3416.2,0.09410132]
[1732399806535,3.09176406,3416.3,3415.5,0.8017]
[1732399806728,3.0,3416.2,3415.5,0.8017]
[1732399807056,0.02688889,3416.1,3415.5,0.8017]
[1732399807238,0.68056116,3416.1,3415.5,0.8017]
[1732399807742,3.07598187,3416.1,3415.5,0.8017]
[1732399807943,0.07598187,3416.1,3415.5,0.8017]
[1732399808150,3.0,3416.0,3415.5,0.8017]
[1732399808461,0.02688889,3415.9,3415.5,0.8017]
[1732399808621,0.07591147,3415.9,3415.5,0.8017]
[1732399811739,0.07591147,3415.9,3414.6,0.7925]
[1732399811931,0.07591147,3415.9,3414.6,0.60803192]
[1732399812271,0.07591147,3415.9,3414.7,0.7925]
[1732399813447,0.02688889,3415.8,3414.7,0.7925]
[1732399813760,0.04886966,3415.7,3414.7,0.7925]
[1732399813976,0.04886966,3415.7,3414.6,0.57380257]
[1732399813977,0.04886966,3415.7,3414.9,0.7925]
[1732399814137,0.02688889,3416.1,3414.9,0.7925]
[1732399814338,0.04897528,3416.0,3414.9,0.7925]
[1732399814541,0.02688889,3415.9,3414.9,0.7925]
[1732399814966,0.04890487,3415.8,3414.9,0.7925]
[1732399815168,0.02688889,3415.7,3414.9,0.7925]
[1732399815665,0.04883445,3415.6,3414.9,0.7925]
[1732399816462,0.02688889,3416.0,3414.9,0.7925]
[1732399816987,0.04894008,3415.9,3414.9,0.7925]
[1732399817195,0.02688889,3415.8,3414.9,0.7925]
[1732399817563,0.04886966,3415.7,3414.9,0.7925]
[1732399818448,0.02688889,3416.0,3414.9,0.7925]
[1732399818695,0.04883445,3415.6,3414.9,0.7925]
[1732399818992,0.04879924,3415.5,3414.9,0.7925]
[1732399819356,0.04258889,3415.8,3414.9,0.7925]
[1732399819552,0.04876402,3415.4,3414.9,0.7925]
[1732399819764,0.04258889,3415.8,3414.9,0.7925]
[1732399820090,0.04872878,3415.3,3414.9,0.7925]
[1732399820275,3.02688889,3415.6,3414.9,0.7925]
[1732399820481,0.04869356,3415.2,3414.9,0.7925]
[1732399820656,3.02688889,3415.6,3414.9,0.7925]
[1732399820657,0.02688889,3415.6,3414.9,0.7925]
[1732399820855,0.04865834,3415.1,3414.9,0.7925]
[1732399821078,0.65432567,3415.6,3414.9,0.7925]
[1732399821284,0.04862312,3415.0,3414.9,0.7925]
[1732399821495,0.02688889,3415.6,3414.9,0.7925]
[1732399821789,0.33114778,3415.7,3414.9,0.7925]
[1732399821989,0.04878017,3415.5,3414.9,0.7925]
[1732399822195,0.04881538,3415.6,3414.9,0.7925]
[1732399822363,0.04874496,3415.4,3414.9,0.7925]
[1732399822559,0.04878017,3415.5,3414.9,0.7925]
[1732399822763,0.04870974,3415.3,3414.9,0.7925]
[1732399822965,0.04874496,3415.4,3414.9,0.7925]
[1732399823301,0.0157,3415.8,3414.9,0.7925]
[1732399823302,0.04867452,3415.2,3414.9,0.7925]
[1732399823600,0.04258889,3415.8,3414.9,0.7925]
[1732399823785,0.63958978,3415.8,3414.9,0.7925]
[1732399824024,0.04885966,3415.7,3414.9,0.7925]
[1732399824527,0.02688889,3415.6,3414.9,0.7925]
[1732399824694,0.04878924,3415.5,3414.9,0.7925]
[1732399825724,0.0157,3416.0,3414.9,0.7925]
[1732399825922,0.04893008,3415.9,3414.9,0.7925]
[1732399826396,0.04893008,3415.9,3415.1,0.7925]
[1732399826600,0.02688889,3416.2,3415.1,0.7925]
[1732399826809,0.04889487,3415.8,3415.1,0.7925]
[1732399827128,0.04885966,3415.7,3415.1,0.7925]
[1732399827305,0.02688889,3416.2,3415.1,0.7925]
[1732399827507,0.04900049,3416.1,3415.1,0.7925]
[1732399827831,0.04258889,3416.4,3415.1,0.7925]
[1732399828027,0.04896528,3416.0,3415.1,0.7925]
[1732399828191,0.02688889,3416.2,3415.1,0.7925]
[1732399828393,0.04893008,3415.9,3415.1,0.7925]
[1732399828594,0.04900049,3416.1,3415.1,0.7925]
[1732399828790,0.04889487,3415.8,3415.1,0.7925]
[1732399828994,0.04896528,3416.0,3415.1,0.7925]
[1732399829228,0.04885966,3415.7,3415.1,0.7925]
[1732399829394,0.02688889,3416.2,3415.1,0.7925]
[1732399829593,0.04882445,3415.6,3415.1,0.7925]
[1732399829794,0.02688889,3416.2,3415.1,0.7925]
[1732399830204,0.04900049,3416.1,3415.1,0.7925]
[1732399831030,0.04900049,3416.1,3415.1,0.8217775]
[1732399831341,0.04896528,3416.0,3415.1,0.8217775]
[1732399831559,0.02688889,3416.8,3415.3,0.7951]
[1732399831763,0.02688889,3416.8,3415.5,0.7951]
[1732399832049,0.07787789,3416.7,3415.5,0.7951]
[1732399832250,0.02688889,3416.6,3415.5,0.2916]
[1732399832464,0.02688889,3416.6,3415.6,0.7951]
[1732399832764,0.04258889,3417.1,3415.8,0.7951]
[1732399832915,0.0157,3417.0,3415.5,0.7951]
[1732399833118,0.1024259,3416.9,3415.5,0.7951]
[1732399834329,0.07553701,3416.9,3415.6,0.02927382]
[1732399834554,0.07553701,3416.9,3415.7,0.7951]
[1732399835161,0.07553701,3416.9,3415.8,0.02927312]
[1732399835453,0.07553701,3416.9,3415.9,0.7951]
[1732399836422,0.07553701,3416.9,3416.1,0.7951]
[1732399836815,0.04258889,3417.3,3416.1,0.7951]
[1732399837357,0.0756789,3417.2,3416.1,0.7951]
[1732399837950,0.10256779,3417.2,3416.1,0.7951]
[1732399838559,0.0756789,3417.2,3416.1,0.7951]
[1732399838924,0.02688889,3417.5,3416.1,0.7951]
[1732399839164,0.73201598,3417.4,3416.1,0.7951]
[1732399839583,0.73201598,3417.4,3416.3,1.0839]
[1732399839891,0.07574749,3417.4,3416.4,0.7923]
[1732399840093,0.02688889,3417.3,3416.4,0.7923]
[1732399840401,0.0756789,3417.2,3416.4,0.7923]
[1732399840609,0.02688889,3417.1,3416.4,0.7923]
[1732399840762,0.10256779,3417.2,3416.4,0.7923]
[1732399840965,0.07564111,3417.0,3416.4,0.7923]
[1732399841164,0.07567542,3417.1,3416.4,0.7923]
[1732399841375,0.07560681,3416.9,3416.4,0.7923]
[1732399841592,0.07564111,3417.0,3416.4,0.7923]
[1732399841773,0.07557251,3416.8,3416.4,0.7923]
[1732399841979,0.07560681,3416.9,3416.4,0.7923]
[1732399842195,0.68047049,3417.5,3416.4,0.7923]
[1732399842398,0.07557251,3416.8,3416.4,0.7923]
[1732399842597,3.02688889,3417.5,3416.4,0.7923]
[1732399842808,0.0755382,3416.7,3416.4,0.7923]
[1732399843013,0.02688889,3417.5,3416.4,0.7923]
[1732399843311,0.65626949,3417.4,3416.4,0.7923]
[1732399843514,0.02688889,3417.3,3416.4,0.7923]
[1732399844027,0.07577409,3417.2,3416.4,0.7923]
[1732399844206,0.02688889,3417.1,3416.4,0.7923]
[1732399844717,0.07570459,3417.0,3416.4,0.7923]
[1732399845287,0.07567029,3416.9,3416.4,0.7923]
[1732399845721,0.02688889,3417.4,3416.4,0.7923]
[1732399845722,0.07563598,3416.8,3416.4,0.7923]
[1732399846033,0.65628549,3417.3,3416.4,0.7923]
[1732399846237,0.07560168,3416.7,3416.4,0.7923]
[1732399846395,0.02688889,3417.2,3416.4,0.7923]
[1732399846886,0.07573889,3417.1,3416.4,0.7923]
[1732399847092,0.02688889,3417.0,3416.4,0.7923]
[1732399847392,0.07567029,3416.9,3416.4,0.7923]
[1732399847888,0.02688889,3417.3,3416.4,0.7923]
[1732399848226,0.67107508,3417.2,3416.4,0.7923]
[1732399848391,0.02688889,3417.1,3416.4,0.7923]
[1732399848788,0.07570459,3417.0,3416.4,0.7923]
[1732399850736,0.02688889,3416.9,3415.4,0.821]
[1732399850892,3.31182935,3416.8,3415.6,0.821]
[1732399851090,0.02688889,3416.7,3415.6,0.821]
[1732399851325,0.63410042,3416.6,3415.6,0.821]
[1732399851511,0.02688889,3416.5,3415.6,0.821]
[1732399851827,0.07549874,3416.4,3415.6,0.821]
[1732399858618,0.02688889,3416.8,3415.6,0.821]
[1732399858821,0.0754082,3416.3,3415.6,0.821]
[1732399859018,0.02688889,3416.8,3415.6,0.821]
[1732399859229,0.07537388,3416.2,3415.6,0.821]
[1732399859540,0.07533956,3416.1,3415.6,0.821]
[1732399859867,3.02688889,3416.7,3415.6,0.821]
[1732399860076,0.68194867,3416.6,3415.6,0.821]
[1732399860234,0.7574598,3416.6,3415.6,0.821]
[1732399860860,3.0,3416.4,3415.6,0.821]
[1732399861071,3.0,3416.1,3415.6,0.821]
[1732399861367,0.69756116,3416.0,3415.6,0.821]
[1732399861529,0.10214427,3416.0,3415.6,0.821]
[1732399862861,3.0,3415.9,3414.6,0.2916]
[1732399863088,0.02688889,3415.8,3414.7,0.821]
[1732399863386,0.10203301,3415.8,3414.7,0.821]
[1732399863562,0.07514412,3415.8,3414.7,0.821]
[1732399863765,0.10203301,3415.8,3414.7,0.821]
[1732399864549,0.10203301,3415.8,3414.8,0.821]
[1732399865051,0.07514412,3415.8,3414.8,0.4086703]
[1732399865392,3.02688889,3416.4,3415.0,0.821]
[1732399865543,0.07502909,3415.7,3415.0,0.821]
[1732399865752,4.28139487,3416.4,3415.0,0.821]
[1732399866083,0.07523503,3416.3,3415.0,0.821]
[1732399866456,0.07523503,3416.3,3415.0,0.85027815]
[1732399867085,0.02688889,3416.2,3415.0,0.821]
[1732399867383,2.9274,3416.0,3415.0,0.821]
[1732399867551,2.92768,3415.7,3415.0,0.821]
[1732399867750,0.10190452,3415.6,3415.0,0.821]
[1732399869686,2.92799,3415.4,3414.3,0.8042]
[1732399869875,3.04534452,3415.6,3414.3,0.8042]
[1732399869876,6.55222234,3415.3,3414.3,0.8042]
[1732399870080,6.00291263,3415.3,3414.3,0.8042]
[1732399870322,0.02688889,3415.2,3414.3,0.8042]
[1732399870719,3.00307395,3415.1,3414.3,0.8042]
[1732399871008,3.0,3414.8,3414.3,0.8042]
[1732399871210,0.02688889,3414.7,3414.3,0.8042]
[1732399871397,3.03005753,3414.7,3414.3,0.8042]
[1732399871597,3.83415955,3414.6,3414.3,0.8042]
[1732399871799,0.02688889,3414.5,3414.3,0.8042]
[1732399872214,0.07445564,3414.4,3414.3,0.8042]
[1732399872717,0.07445564,3414.4,3413.5,0.8042]
[1732399872903,0.02688889,3414.3,3413.6,0.06398285]
[1732399873094,3.0,3414.1,3413.6,0.06398285]
[1732399873301,3.0,3413.7,3413.6,0.06398285]
[1732399873488,3.61982489,3413.7,3413.6,0.06398285]
[1732399873707,3.69402638,3413.7,3413.6,0.06398285]
[1732399873907,6.62339638,3413.7,3413.6,0.06398285]
[1732399874215,7.14650749,3413.7,3413.6,0.06398285]
[1732399874386,3.0,3413.5,3413.3,0.01118716]
[1732399874582,0.07406116,3413.4,3413.3,0.01118716]
[1732399874779,0.02688889,3413.4,3413.3,0.01118716]
[1732399875012,0.10089646,3413.4,3413.3,0.01118716]
[1732399875221,0.02688889,3413.4,3413.3,0.01118716]
[1732399875423,6.72708302,3413.4,3413.3,0.01118716]
[1732399875585,5.92963,3413.4,3413.3,0.01118716]
[1732399875786,6.04622646,3413.4,3413.3,0.01118716]
[1732399877479,3.04622646,3413.4,3413.3,0.01118716]